[Event "Late-Titled-Tuesday-Blitz-January-30-2024"]
[Site "Chess.com"]
[Date "2024.01.30"]
[Round "2"]
[White "Iuckyducky"]
[Black "JulAnt"]
[Result "0-1"]
[WhiteElo "2313"]
[BlackElo "2537"]
[TimeControl "180+1"]
[EndTime "14:17:17 PST"]
[Termination "JulAnt won by resignation"]

1. d4 {[%clk 0:02:53.8]} 1... Nf6 {[%clk 0:02:59.7]} 2. c4 {[%clk 0:02:53.6]}
2... c5 {[%clk 0:02:57.4]} 3. Nf3 {[%clk 0:02:53.2]} 3... cxd4 {[%clk
0:02:53.6]} 4. Nxd4 {[%clk 0:02:48.9]} 4... Nc6 {[%clk 0:02:54.2]} 5. Nc3 {[%clk
0:02:46.7]} 5... g6 {[%clk 0:02:51.2]} 6. g3 {[%clk 0:02:47]} 6... Bg7 {[%clk
0:02:51.5]} 7. Bg2 {[%clk 0:02:47.5]} 7... O-O {[%clk 0:02:51.2]} 8. O-O {[%clk
0:02:47.7]} 8... a6 {[%clk 0:02:33.4]} 9. b3 {[%clk 0:01:59.6]} 9... Nxd4 {[%clk
0:02:31.3]} 10. Qxd4 {[%clk 0:01:59.3]} 10... d6 {[%clk 0:02:31.7]} 11. Bb2
{[%clk 0:01:57.6]} 11... Rb8 {[%clk 0:02:27.4]} 12. e4 {[%clk 0:01:51.7]} 12...
b5 {[%clk 0:02:25]} 13. Rac1 {[%clk 0:01:39.3]} 13... Be6 {[%clk 0:02:16.4]} 14.
cxb5 {[%clk 0:01:39.1]} 14... axb5 {[%clk 0:02:16.4]} 15. Rfd1 {[%clk
0:01:30.8]} 15... Qa5 {[%clk 0:02:09.2]} 16. Qd2 {[%clk 0:01:20.5]} 16... b4
{[%clk 0:02:03.2]} 17. Na4 {[%clk 0:01:20.2]} 17... Rfc8 {[%clk 0:01:57.9]} 18.
h4 {[%clk 0:01:08.9]} 18... h5 {[%clk 0:01:54.9]} 19. Rxc8+ {[%clk 0:01:03]}
19... Rxc8 {[%clk 0:01:55.2]} 20. Rc1 {[%clk 0:01:03.5]} 20... Rxc1+ {[%clk
0:01:45.7]} 21. Qxc1 {[%clk 0:01:04.4]} 21... Ng4 {[%clk 0:01:36.4]} 22. Qc6
{[%clk 0:00:59.6]} 22... Bxb2 {[%clk 0:01:29.1]} 23. Nxb2 {[%clk 0:00:58.9]}
23... Qxa2 {[%clk 0:01:27.4]} 24. Nd1 {[%clk 0:00:26.1]} 24... Qb1 {[%clk
0:01:07.8]} 25. Bf3 {[%clk 0:00:23.5]} 25... Bxb3 {[%clk 0:01:08]} 26. Qe8+
{[%clk 0:00:11.4]} 26... Kg7 {[%clk 0:01:07.4]} 27. Bxg4 {[%clk 0:00:05.8]}
27... hxg4 {[%clk 0:01:07.5]} 28. Qxe7 {[%clk 0:00:06.1]} 28... Qxd1+ {[%clk
0:01:05.5]} 29. Kh2 {[%clk 0:00:05.5]} 29... Qf3 {[%clk 0:00:55.8]} 30. Qa7
{[%clk 0:00:05.2]} 30... Be6 {[%clk 0:00:53.9]} 31. Qd4+ {[%clk 0:00:04]} 31...
Qf6 {[%clk 0:00:52.6]} 32. Qxd6 {[%clk 0:00:04.2]} 32... Qxf2+ {[%clk
0:00:52.1]} 33. Kh1 {[%clk 0:00:04.7]} 33... Qf3+ {[%clk 0:00:48.8]} 34. Kh2
{[%clk 0:00:05.1]} 34... Qxe4 {[%clk 0:00:49.2]} 35. Qb6 {[%clk 0:00:03.3]}
35... Qe2+ {[%clk 0:00:45.4]} 36. Kg1 {[%clk 0:00:03.8]} 36... Qe1+ {[%clk
0:00:45.8]} 37. Kh2 {[%clk 0:00:04.2]} 37... Qd2+ {[%clk 0:00:43.2]} 38. Kg1
{[%clk 0:00:04.2]} 38... b3 {[%clk 0:00:43.8]} 39. Qb7 {[%clk 0:00:01.8]} 39...
Qd1+ {[%clk 0:00:39.3]} 0-1

[Event "Late-Titled-Tuesday-Blitz-January-30-2024"]
[Site "Chess.com"]
[Date "2024.01.30"]
[Round "2"]
[White "rcmz"]
[Black "ACollins05"]
[Result "1-0"]
[WhiteElo "2138"]
[BlackElo "2455"]
[TimeControl "180+1"]
[EndTime "14:17:19 PST"]
[Termination "rcmz won by checkmate"]

1. b4 {[%clk 0:02:59.5]} 1... e5 {[%clk 0:02:56.4]} 2. Bb2 {[%clk 0:02:59.3]}
2... Bxb4 {[%clk 0:02:55.4]} 3. Bxe5 {[%clk 0:02:58.9]} 3... Nf6 {[%clk
0:02:55.9]} 4. c4 {[%clk 0:02:58.2]} 4... Be7 {[%clk 0:02:53.7]} 5. Nf3 {[%clk
0:02:57]} 5... d6 {[%clk 0:02:53.4]} 6. Bb2 {[%clk 0:02:56.1]} 6... O-O {[%clk
0:02:54.1]} 7. e3 {[%clk 0:02:56.2]} 7... d5 {[%clk 0:02:54.1]} 8. cxd5 {[%clk
0:02:55.4]} 8... Nxd5 {[%clk 0:02:54.6]} 9. Be2 {[%clk 0:02:55.6]} 9... Bf6
{[%clk 0:02:54.2]} 10. d4 {[%clk 0:02:53.5]} 10... c5 {[%clk 0:02:54.1]} 11. O-O
{[%clk 0:02:51.9]} 11... Nc6 {[%clk 0:02:54.1]} 12. Bb5 {[%clk 0:02:43.3]} 12...
cxd4 {[%clk 0:02:52.8]} 13. Bxc6 {[%clk 0:02:42.6]} 13... bxc6 {[%clk
0:02:52.1]} 14. Bxd4 {[%clk 0:02:39.9]} 14... Bg4 {[%clk 0:02:50.9]} 15. Bxf6
{[%clk 0:02:35.6]} 15... Qxf6 {[%clk 0:02:51.8]} 16. Nbd2 {[%clk 0:02:35.4]}
16... Rad8 {[%clk 0:02:50.5]} 17. Qb3 {[%clk 0:02:29.3]} 17... Qc3 {[%clk
0:02:38.9]} 18. Qa4 {[%clk 0:02:23.8]} 18... Nb6 {[%clk 0:02:34.7]} 19. Qxg4
{[%clk 0:02:22.1]} 19... Rxd2 {[%clk 0:02:31]} 20. Nxd2 {[%clk 0:02:21.5]} 20...
Qxd2 {[%clk 0:02:31.9]} 21. Rfd1 {[%clk 0:02:19.7]} 21... Qb2 {[%clk 0:02:30.9]}
22. Qd4 {[%clk 0:02:16.8]} 22... Qb5 {[%clk 0:02:30.4]} 23. a4 {[%clk
0:02:15.4]} 23... Qg5 {[%clk 0:02:26.7]} 24. a5 {[%clk 0:02:14.1]} 24... Nd5
{[%clk 0:02:26.8]} 25. Qc5 {[%clk 0:02:07.5]} 25... Qg6 {[%clk 0:02:23.8]} 26.
Rac1 {[%clk 0:02:03.9]} 26... Nf6 {[%clk 0:02:20.9]} 27. Qxc6 {[%clk 0:02:00.3]}
27... Qh5 {[%clk 0:02:21.2]} 28. Qc5 {[%clk 0:01:54.9]} 28... Qh4 {[%clk
0:02:14.5]} 29. Qf5 {[%clk 0:01:37.3]} 29... g6 {[%clk 0:02:09]} 30. Qf4 {[%clk
0:01:32.5]} 30... Qxf4 {[%clk 0:01:46.9]} 31. exf4 {[%clk 0:01:32]} 31... Re8
{[%clk 0:01:45.5]} 32. Rc7 {[%clk 0:01:28.7]} 32... Re2 {[%clk 0:01:45.2]} 33.
f3 {[%clk 0:01:22.3]} 33... Nh5 {[%clk 0:01:41.9]} 34. g3 {[%clk 0:01:21]} 34...
Re3 {[%clk 0:01:38.8]} 35. Kf2 {[%clk 0:01:19.7]} 35... Ra3 {[%clk 0:01:33.6]}
36. Rxa7 {[%clk 0:01:19.2]} 36... Ra2+ {[%clk 0:01:32]} 37. Kg1 {[%clk
0:01:19.1]} 37... Ng7 {[%clk 0:01:32.6]} 38. Rdd7 {[%clk 0:01:14.2]} 38... Nf5
{[%clk 0:01:27.3]} 39. Rxf7 {[%clk 0:01:10]} 39... Nd4 {[%clk 0:01:27.5]} 40.
Rg7+ {[%clk 0:01:02.1]} 40... Kf8 {[%clk 0:01:26.5]} 41. Rxh7 {[%clk 0:00:55.3]}
41... Nxf3+ {[%clk 0:01:26.5]} 42. Kf1 {[%clk 0:00:54.7]} 42... Nd2+ {[%clk
0:01:26]} 43. Ke2 {[%clk 0:00:54.2]} 43... Nc4+ {[%clk 0:01:25.9]} 44. Kd3
{[%clk 0:00:53.2]} 44... Nb2+ {[%clk 0:01:23.8]} 45. Kc3 {[%clk 0:00:51.1]}
45... Kg8 {[%clk 0:01:24.7]} 46. Rhg7+ {[%clk 0:00:46.5]} 46... Kf8 {[%clk
0:01:24.2]} 47. Kb3 {[%clk 0:00:46.7]} 47... Ra1 {[%clk 0:01:20.7]} 48. Kxb2
{[%clk 0:00:46.2]} 48... Rh1 {[%clk 0:01:21.2]} 49. Rh7 {[%clk 0:00:44.5]} 49...
Kg8 {[%clk 0:01:20.8]} 50. Rag7+ {[%clk 0:00:44.2]} 50... Kf8 {[%clk 0:01:20.7]}
51. a6 {[%clk 0:00:44.8]} 51... Re1 {[%clk 0:01:13]} 52. a7 {[%clk 0:00:44.2]}
52... Re2+ {[%clk 0:01:13.5]} 53. Kb3 {[%clk 0:00:43.3]} 53... Re3+ {[%clk
0:01:14]} 54. Kb4 {[%clk 0:00:43.6]} 54... Re4+ {[%clk 0:01:14.6]} 55. Kb5
{[%clk 0:00:43.9]} 55... Re8 {[%clk 0:01:14.1]} 56. Rb7 {[%clk 0:00:41.3]} 56...
Kg8 {[%clk 0:01:12.4]} 57. Rb8 {[%clk 0:00:41.2]} 57... Kxh7 {[%clk 0:01:09.3]}
58. Rxe8 {[%clk 0:00:40.1]} 58... g5 {[%clk 0:01:09.9]} 59. a8=Q {[%clk
0:00:38.5]} 59... gxf4 {[%clk 0:01:09.8]} 60. Qe4+ {[%clk 0:00:36]} 60... Kg7
{[%clk 0:01:04.7]} 61. Qxf4 {[%clk 0:00:33.8]} 61... Kh7 {[%clk 0:01:05.6]} 62.
Qf7+ {[%clk 0:00:33.1]} 62... Kh6 {[%clk 0:01:05.4]} 63. h3 {[%clk 0:00:31.1]}
63... Kg5 {[%clk 0:01:06.3]} 64. Re5+ {[%clk 0:00:30]} 64... Kh6 {[%clk
0:01:07.2]} 65. Rh5# {[%clk 0:00:28.2]} 1-0

[Event "Late-Titled-Tuesday-Blitz-January-30-2024"]
[Site "Chess.com"]
[Date "2024.01.30"]
[Round "2"]
[White "Ali_rastbod"]
[Black "carloseduar100"]
[Result "0-1"]
[WhiteElo "2682"]
[BlackElo "2318"]
[TimeControl "180+1"]
[EndTime "14:17:22 PST"]
[Termination "carloseduar100 won by resignation"]

1. d4 {[%clk 0:03:00.9]} 1... d5 {[%clk 0:02:59.8]} 2. c4 {[%clk 0:02:58.8]}
2... e5 {[%clk 0:03:00.3]} 3. dxe5 {[%clk 0:02:56.9]} 3... d4 {[%clk 0:03:01.2]}
4. Nf3 {[%clk 0:02:56.5]} 4... Nc6 {[%clk 0:03:01.7]} 5. a3 {[%clk 0:02:55.8]}
5... Nge7 {[%clk 0:03:02]} 6. g3 {[%clk 0:02:44.5]} 6... Ng6 {[%clk 0:03:01.3]}
7. Bg2 {[%clk 0:02:44.3]} 7... Bg4 {[%clk 0:03:01.2]} 8. O-O {[%clk 0:02:43.5]}
8... Qd7 {[%clk 0:03:01.5]} 9. b4 {[%clk 0:02:43]} 9... Ncxe5 {[%clk 0:03:00.6]}
10. Nxe5 {[%clk 0:02:38]} 10... Nxe5 {[%clk 0:03:00.7]} 11. Bb2 {[%clk
0:02:34.5]} 11... O-O-O {[%clk 0:02:53.3]} 12. Nd2 {[%clk 0:02:28.3]} 12... d3
{[%clk 0:02:47.5]} 13. Nf3 {[%clk 0:02:21]} 13... Nxc4 {[%clk 0:02:40.7]} 14.
Bc3 {[%clk 0:02:18.4]} 14... dxe2 {[%clk 0:02:32.7]} 15. Qxe2 {[%clk 0:02:19.3]}
15... Qd3 {[%clk 0:02:27.5]} 16. Qxd3 {[%clk 0:02:01]} 16... Rxd3 {[%clk
0:02:28.4]} 17. Ne5 {[%clk 0:02:00.9]} 17... Rxc3 {[%clk 0:02:14.7]} 18. Nxg4
{[%clk 0:01:57.8]} 18... Rxa3 {[%clk 0:02:14.8]} 19. Rac1 {[%clk 0:01:48.1]}
19... b5 {[%clk 0:02:10]} 20. Bd5 {[%clk 0:01:40.3]} 20... Bxb4 {[%clk 0:01:38]}
21. Bxf7 {[%clk 0:01:39.9]} 21... Nd2 {[%clk 0:01:24.2]} 22. Rfd1 {[%clk
0:01:33.5]} 22... h5 {[%clk 0:01:23.9]} 23. Ne5 {[%clk 0:01:31.9]} 23... Nf3+
{[%clk 0:01:20]} 24. Nxf3 {[%clk 0:01:30.4]} 24... Rxf3 {[%clk 0:01:20.9]} 25.
Be6+ {[%clk 0:01:29.4]} 25... Kb8 {[%clk 0:01:20.9]} 26. Rd7 {[%clk 0:01:22]}
26... Bd6 {[%clk 0:01:20]} 27. Rxg7 {[%clk 0:01:16.2]} 27... a5 {[%clk
0:01:19.9]} 28. Bd5 {[%clk 0:01:13.3]} 28... Rf5 {[%clk 0:01:09.5]} 29. Be4
{[%clk 0:01:11.7]} 29... Re5 {[%clk 0:01:09]} 30. Bg2 {[%clk 0:01:12.2]} 30...
a4 {[%clk 0:01:08.6]} 31. Rc6 {[%clk 0:00:47]} 31... a3 {[%clk 0:00:51.4]} 32.
Ra6 {[%clk 0:00:45.4]} 32... Re1+ {[%clk 0:00:28.3]} 33. Bf1 {[%clk 0:00:45.5]}
33... Kb7 {[%clk 0:00:24.6]} 34. Ra5 {[%clk 0:00:32.6]} 34... Rxf1+ {[%clk
0:00:24.7]} 35. Kxf1 {[%clk 0:00:32]} 35... Kb6 {[%clk 0:00:25.6]} 0-1

[Event "Late-Titled-Tuesday-Blitz-January-30-2024"]
[Site "Chess.com"]
[Date "2024.01.30"]
[Round "2"]
[White "Alex_Sahakyan2006"]
[Black "ccccvhhhj"]
[Result "1-0"]
[WhiteElo "2860"]
[BlackElo "2416"]
[TimeControl "180+1"]
[EndTime "14:17:22 PST"]
[Termination "Alex_Sahakyan2006 won on time"]

1. e4 {[%clk 0:03:00.9]} 1... e6 {[%clk 0:03:00.1]} 2. d4 {[%clk 0:03:00.7]}
2... d5 {[%clk 0:03:01]} 3. exd5 {[%clk 0:03:01.3]} 3... exd5 {[%clk 0:03:01.9]}
4. Nc3 {[%clk 0:03:00.5]} 4... c6 {[%clk 0:02:58.7]} 5. Nf3 {[%clk 0:02:59.7]}
5... Bg4 {[%clk 0:02:56.9]} 6. Bd3 {[%clk 0:02:57.6]} 6... Be7 {[%clk
0:02:56.3]} 7. Ne2 {[%clk 0:02:33.8]} 7... Nd7 {[%clk 0:02:47.5]} 8. Ng3 {[%clk
0:02:33.3]} 8... Ngf6 {[%clk 0:02:47.2]} 9. h3 {[%clk 0:02:32.8]} 9... Be6
{[%clk 0:02:45]} 10. O-O {[%clk 0:02:30.1]} 10... O-O {[%clk 0:02:44.3]} 11. Nf5
{[%clk 0:02:28]} 11... Bxf5 {[%clk 0:02:39.4]} 12. Bxf5 {[%clk 0:02:28.9]} 12...
Bd6 {[%clk 0:02:38.6]} 13. Re1 {[%clk 0:02:25]} 13... Qc7 {[%clk 0:02:38.3]} 14.
Bg5 {[%clk 0:02:24.5]} 14... Rfe8 {[%clk 0:02:36.9]} 15. Qd3 {[%clk 0:02:18.3]}
15... Bf4 {[%clk 0:02:25.7]} 16. Bh4 {[%clk 0:01:42.5]} 16... h6 {[%clk
0:02:25.8]} 17. Bxd7 {[%clk 0:01:23.9]} 17... Nxd7 {[%clk 0:02:22.9]} 18. Qf5
{[%clk 0:01:22.6]} 18... Nf8 {[%clk 0:02:10.7]} 19. Ne5 {[%clk 0:01:08.5]} 19...
Bxe5 {[%clk 0:02:07.9]} 20. dxe5 {[%clk 0:01:06.9]} 20... Ne6 {[%clk 0:02:03.1]}
21. Qg4 {[%clk 0:00:57.4]} 21... Kh8 {[%clk 0:01:53.4]} 22. f4 {[%clk
0:00:56.2]} 22... Qb6+ {[%clk 0:01:52.1]} 23. Kh1 {[%clk 0:00:53.5]} 23... Qd4
{[%clk 0:01:13.4]} 24. Bg3 {[%clk 0:00:42.3]} 24... Nc5 {[%clk 0:01:09.6]} 25.
Rad1 {[%clk 0:00:31.2]} 25... Qxb2 {[%clk 0:00:55.6]} 26. f5 {[%clk 0:00:30.5]}
26... Ne4 {[%clk 0:00:53.3]} 27. Rxe4 {[%clk 0:00:27.6]} 27... dxe4 {[%clk
0:00:53.3]} 28. f6 {[%clk 0:00:23.5]} 28... g6 {[%clk 0:00:43.9]} 29. Qh4 {[%clk
0:00:20.7]} 29... Kh7 {[%clk 0:00:36.6]} 30. Bf4 {[%clk 0:00:20.9]} 30... h5
{[%clk 0:00:32.7]} 31. Qg5 {[%clk 0:00:20.6]} 31... Kg8 {[%clk 0:00:09.9]} 32.
Qh6 {[%clk 0:00:21.5]} 1-0

[Event "Late-Titled-Tuesday-Blitz-January-30-2024"]
[Site "Chess.com"]
[Date "2024.01.30"]
[Round "2"]
[White "ilushka"]
[Black "yobdc"]
[Result "0-1"]
[WhiteElo "2367"]
[BlackElo "2565"]
[TimeControl "180+1"]
[EndTime "14:17:22 PST"]
[Termination "yobdc won on time"]

1. e4 {[%clk 0:03:00.9]} 1... c6 {[%clk 0:02:59.9]} 2. Nf3 {[%clk 0:03:00.3]}
2... d5 {[%clk 0:02:59.8]} 3. Nc3 {[%clk 0:03:00.9]} 3... dxe4 {[%clk
0:02:56.1]} 4. Nxe4 {[%clk 0:03:01.1]} 4... Nf6 {[%clk 0:02:56.7]} 5. Nxf6+
{[%clk 0:03:01]} 5... exf6 {[%clk 0:02:57.6]} 6. d4 {[%clk 0:03:01.2]} 6... Bd6
{[%clk 0:02:57.7]} 7. Bd3 {[%clk 0:03:01.2]} 7... O-O {[%clk 0:02:56.3]} 8. Be3
{[%clk 0:03:01.3]} 8... Bg4 {[%clk 0:02:56.5]} 9. h3 {[%clk 0:03:00.2]} 9...
Bxf3 {[%clk 0:02:56.2]} 10. Qxf3 {[%clk 0:03:00]} 10... Nd7 {[%clk 0:02:56.4]}
11. O-O-O {[%clk 0:02:57.5]} 11... Qa5 {[%clk 0:02:55.8]} 12. Kb1 {[%clk
0:02:57.2]} 12... Nb6 {[%clk 0:02:48.4]} 13. g4 {[%clk 0:02:54.3]} 13... Na4
{[%clk 0:02:46]} 14. Qf5 {[%clk 0:02:39.6]} 14... Qxf5 {[%clk 0:02:44.7]} 15.
gxf5 {[%clk 0:02:38]} 15... Rfe8 {[%clk 0:02:24.2]} 16. h4 {[%clk 0:02:35.9]}
16... Nb6 {[%clk 0:02:13.1]} 17. c4 {[%clk 0:02:32.8]} 17... Bf8 {[%clk
0:02:07.1]} 18. h5 {[%clk 0:02:30.8]} 18... Nd7 {[%clk 0:01:57.1]} 19. Rhg1
{[%clk 0:02:27.3]} 19... c5 {[%clk 0:01:56.3]} 20. Bc2 {[%clk 0:01:58.9]} 20...
cxd4 {[%clk 0:01:37.9]} 21. Bxd4 {[%clk 0:01:58.7]} 21... Ne5 {[%clk 0:01:37.7]}
22. Rg3 {[%clk 0:01:16.5]} 22... Rad8 {[%clk 0:01:25.7]} 23. Bxa7 {[%clk
0:00:49.4]} 23... Rxd1+ {[%clk 0:01:19.4]} 24. Bxd1 {[%clk 0:00:50.3]} 24...
Nxc4 {[%clk 0:01:19.2]} 25. Bd4 {[%clk 0:00:25.1]} 25... Rd8 {[%clk 0:01:04]}
26. Rg4 {[%clk 0:00:12]} 26... Ne5 {[%clk 0:00:14.2]} 27. Be2 {[%clk 0:00:06.8]}
27... Bd6 {[%clk 0:00:12.6]} 28. Re4 {[%clk 0:00:03.3]} 28... Kf8 {[%clk
0:00:12.6]} 0-1

[Event "Late-Titled-Tuesday-Blitz-January-30-2024"]
[Site "Chess.com"]
[Date "2024.01.30"]
[Round "2"]
[White "jup1978"]
[Black "PattyCastillo"]
[Result "1-0"]
[WhiteElo "2437"]
[BlackElo "1991"]
[TimeControl "180+1"]
[EndTime "14:17:22 PST"]
[Termination "jup1978 won on time"]

1. e4 {[%clk 0:03:00.9]} 1... c5 {[%clk 0:02:58.7]} 2. Nf3 {[%clk 0:03:00.4]}
2... d6 {[%clk 0:02:58.8]} 3. Bb5+ {[%clk 0:02:59.3]} 3... Nd7 {[%clk
0:02:58.1]} 4. d4 {[%clk 0:02:57.5]} 4... cxd4 {[%clk 0:02:56.2]} 5. Qxd4 {[%clk
0:02:58.4]} 5... a6 {[%clk 0:02:55.8]} 6. Bxd7+ {[%clk 0:02:58.9]} 6... Bxd7
{[%clk 0:02:55.5]} 7. Nc3 {[%clk 0:02:59.8]} 7... e5 {[%clk 0:02:53.8]} 8. Qd3
{[%clk 0:03:00.2]} 8... Be7 {[%clk 0:02:48.8]} 9. O-O {[%clk 0:02:58.1]} 9...
Nf6 {[%clk 0:02:48.8]} 10. Bg5 {[%clk 0:02:57.5]} 10... Bc6 {[%clk 0:02:46.5]}
11. Bxf6 {[%clk 0:02:56.2]} 11... gxf6 {[%clk 0:02:43.2]} 12. Nh4 {[%clk
0:02:53.6]} 12... Rc8 {[%clk 0:02:36.6]} 13. Nf5 {[%clk 0:02:51.8]} 13... Rg8
{[%clk 0:02:29.2]} 14. Rfd1 {[%clk 0:02:49.1]} 14... Qd7 {[%clk 0:02:16.9]} 15.
f3 {[%clk 0:02:38.3]} 15... Rd8 {[%clk 0:02:08.5]} 16. Nd5 {[%clk 0:02:34.7]}
16... Bxd5 {[%clk 0:01:59.1]} 17. Qxd5 {[%clk 0:02:35.6]} 17... Qa4 {[%clk
0:01:39]} 18. Qxb7 {[%clk 0:02:12.4]} 18... Rd7 {[%clk 0:01:28.1]} 19. Qb8+
{[%clk 0:01:47.5]} 19... Rd8 {[%clk 0:01:24.9]} 20. Qb3 {[%clk 0:01:46]} 20...
Qc6 {[%clk 0:01:15.2]} 21. Rd5 {[%clk 0:01:40]} 21... Kf8 {[%clk 0:01:07]} 22.
Rad1 {[%clk 0:01:37.7]} 22... Rg5 {[%clk 0:00:55.4]} 23. h4 {[%clk 0:01:27.5]}
23... Rg6 {[%clk 0:00:51.6]} 24. h5 {[%clk 0:01:23.6]} 24... Rg5 {[%clk
0:00:49.2]} 25. g4 {[%clk 0:01:23.4]} 25... Qc7 {[%clk 0:00:07.2]} 26. Qd3
{[%clk 0:00:56.1]} 26... Qb6+ {[%clk 0:00:04.1]} 27. Qe3 {[%clk 0:00:50.2]}
27... Qxb2 {[%clk 0:00:02.8]} 28. Qa7 {[%clk 0:00:45.6]} 28... Re8 {[%clk
0:00:01.5]} 29. Qxa6 {[%clk 0:00:25.2]} 29... Qxc2 {[%clk 0:00:01.5]} 30. R1d2
{[%clk 0:00:21.7]} 30... Qc1+ {[%clk 0:00:01.2]} 31. Qf1 {[%clk 0:00:22.3]} 1-0

[Event "Late-Titled-Tuesday-Blitz-January-30-2024"]
[Site "Chess.com"]
[Date "2024.01.30"]
[Round "2"]
[White "Dzidzik2203"]
[Black "pavet"]
[Result "0-1"]
[WhiteElo "2408"]
[BlackElo "2771"]
[TimeControl "180+1"]
[EndTime "14:17:24 PST"]
[Termination "pavet won on time"]

1. b3 {[%clk 0:03:00.9]} 1... d5 {[%clk 0:03:00]} 2. Bb2 {[%clk 0:03:01.8]} 2...
Nf6 {[%clk 0:02:59.6]} 3. e3 {[%clk 0:03:01]} 3... Bf5 {[%clk 0:03:00.3]} 4. Nf3
{[%clk 0:02:59.6]} 4... e6 {[%clk 0:03:00.8]} 5. Be2 {[%clk 0:02:57.2]} 5... Bd6
{[%clk 0:03:01]} 6. O-O {[%clk 0:02:56.3]} 6... Nbd7 {[%clk 0:03:01.4]} 7. c4
{[%clk 0:02:55.1]} 7... O-O {[%clk 0:03:01.3]} 8. Nc3 {[%clk 0:02:54.1]} 8... c6
{[%clk 0:03:01.7]} 9. Nh4 {[%clk 0:02:52.4]} 9... Bg6 {[%clk 0:03:01.8]} 10.
Nxg6 {[%clk 0:02:51.5]} 10... hxg6 {[%clk 0:03:02.7]} 11. Qc2 {[%clk 0:02:49.8]}
11... a6 {[%clk 0:03:02.7]} 12. d4 {[%clk 0:02:47.8]} 12... Re8 {[%clk
0:03:01.9]} 13. e4 {[%clk 0:02:45.7]} 13... dxe4 {[%clk 0:03:01.7]} 14. Nxe4
{[%clk 0:02:46.6]} 14... Nxe4 {[%clk 0:03:02.2]} 15. Qxe4 {[%clk 0:02:42.7]}
15... e5 {[%clk 0:03:02.6]} 16. Rad1 {[%clk 0:01:40.8]} 16... Nf6 {[%clk
0:02:36.8]} 17. Qc2 {[%clk 0:01:34.5]} 17... e4 {[%clk 0:02:35.4]} 18. Rfe1
{[%clk 0:01:16.1]} 18... Bb4 {[%clk 0:02:25.6]} 19. Bc3 {[%clk 0:01:14]} 19...
a5 {[%clk 0:02:25.5]} 20. Bf1 {[%clk 0:01:10.2]} 20... Qd6 {[%clk 0:02:23.7]}
21. g3 {[%clk 0:01:05.8]} 21... Rad8 {[%clk 0:02:21.4]} 22. Bg2 {[%clk 0:01:05]}
22... Bxc3 {[%clk 0:02:12.3]} 23. Qxc3 {[%clk 0:01:04.1]} 23... b6 {[%clk
0:02:11.4]} 24. Re2 {[%clk 0:00:52.9]} 24... c5 {[%clk 0:02:11.2]} 25. Red2
{[%clk 0:00:48.9]} 25... cxd4 {[%clk 0:02:09.8]} 26. Rxd4 {[%clk 0:00:49.2]}
26... Qc7 {[%clk 0:02:10.4]} 27. Qe3 {[%clk 0:00:38.6]} 27... Rxd4 {[%clk
0:02:05.2]} 28. Qxd4 {[%clk 0:00:38.9]} 28... Kh7 {[%clk 0:01:32.7]} 29. Qd6
{[%clk 0:00:37.8]} 29... Qb7 {[%clk 0:01:25.6]} 30. h3 {[%clk 0:00:29.8]} 30...
Re6 {[%clk 0:01:25.3]} 31. Qd4 {[%clk 0:00:27.8]} 31... Qe7 {[%clk 0:01:25.1]}
32. Re1 {[%clk 0:00:26]} 32... Qb4 {[%clk 0:01:19.4]} 33. Re3 {[%clk 0:00:25]}
33... a4 {[%clk 0:01:19.4]} 34. bxa4 {[%clk 0:00:21.8]} 34... Qxa4 {[%clk
0:01:15.3]} 35. Bxe4 {[%clk 0:00:21.8]} 35... Qxa2 {[%clk 0:01:15]} 36. Bd5
{[%clk 0:00:08]} 36... Rd6 {[%clk 0:01:04.8]} 37. Rd3 {[%clk 0:00:05.8]} 37...
Rd7 {[%clk 0:00:45.1]} 38. Kg2 {[%clk 0:00:05.2]} 38... Qa5 {[%clk 0:00:44.2]}
39. Rd1 {[%clk 0:00:03.2]} 39... b5 {[%clk 0:00:38.8]} 0-1

[Event "Late-Titled-Tuesday-Blitz-January-30-2024"]
[Site "Chess.com"]
[Date "2024.01.30"]
[Round "2"]
[White "Onthequiet"]
[Black "bn1462"]
[Result "1-0"]
[WhiteElo "2428"]
[BlackElo "1953"]
[TimeControl "180+1"]
[EndTime "14:17:24 PST"]
[Termination "Onthequiet won on time"]

1. d4 {[%clk 0:02:58.8]} 1... d5 {[%clk 0:02:59.7]} 2. Nf3 {[%clk 0:02:59.7]}
2... Nf6 {[%clk 0:02:59]} 3. c4 {[%clk 0:02:59.4]} 3... e6 {[%clk 0:02:56.3]} 4.
Nc3 {[%clk 0:02:57.1]} 4... dxc4 {[%clk 0:02:51.7]} 5. Qa4+ {[%clk 0:02:54.1]}
5... Nbd7 {[%clk 0:02:44]} 6. Ne5 {[%clk 0:02:52.1]} 6... c5 {[%clk 0:02:18.9]}
7. e3 {[%clk 0:02:27]} 7... cxd4 {[%clk 0:02:14.4]} 8. exd4 {[%clk 0:02:26.4]}
8... Bd6 {[%clk 0:02:12.8]} 9. Nxc4 {[%clk 0:02:24.4]} 9... Be7 {[%clk
0:02:09.2]} 10. Be2 {[%clk 0:02:22.6]} 10... O-O {[%clk 0:02:09.1]} 11. O-O
{[%clk 0:02:21.8]} 11... Nb6 {[%clk 0:01:45.4]} 12. Nxb6 {[%clk 0:02:13.2]}
12... Qxb6 {[%clk 0:01:46.3]} 13. Bf3 {[%clk 0:02:02.3]} 13... Bd7 {[%clk
0:01:42.9]} 14. Qb3 {[%clk 0:01:52.5]} 14... Bc6 {[%clk 0:01:31.9]} 15. Qxb6
{[%clk 0:01:18.8]} 15... axb6 {[%clk 0:01:30.6]} 16. Bg5 {[%clk 0:01:13.9]}
16... Bxf3 {[%clk 0:01:20]} 17. gxf3 {[%clk 0:01:14.8]} 17... Rfd8 {[%clk
0:01:19.4]} 18. Rfd1 {[%clk 0:01:12.1]} 18... Nd5 {[%clk 0:01:13.2]} 19. Nxd5
{[%clk 0:01:09.1]} 19... Bxg5 {[%clk 0:01:07.2]} 20. Nxb6 {[%clk 0:01:07.9]}
20... Ra6 {[%clk 0:00:55.9]} 21. Nc4 {[%clk 0:01:07.2]} 21... Bf6 {[%clk
0:00:51.3]} 22. a4 {[%clk 0:00:55.6]} 22... Rxd4 {[%clk 0:00:42.9]} 23. Rxd4
{[%clk 0:00:53.1]} 23... Bxd4 {[%clk 0:00:43.6]} 24. Rd1 {[%clk 0:00:52.3]}
24... Bf6 {[%clk 0:00:38.7]} 25. b3 {[%clk 0:00:50.4]} 25... g6 {[%clk
0:00:36.8]} 26. Rd7 {[%clk 0:00:50]} 26... Kg7 {[%clk 0:00:09.4]} 27. Rxb7
{[%clk 0:00:45.8]} 27... Rc6 {[%clk 0:00:09.5]} 28. Kf1 {[%clk 0:00:38.6]} 28...
Rc5 {[%clk 0:00:08.8]} 29. Nd6 {[%clk 0:00:32.8]} 29... Rc1+ {[%clk 0:00:05.7]}
30. Kg2 {[%clk 0:00:32.6]} 30... Be5 {[%clk 0:00:04.1]} 31. Nxf7 {[%clk
0:00:30.5]} 1-0